[Event "Titled Tuesday Blitz August 17 2021"]
[White "Zakaryan_David"]
[Black "Goryachkina, Aleksandra"]
[BlackFideId "4147103"]
[WhiteElo "2498"]
[BlackElo "2441"]
[Result "1-0"]
[Round "04"]
[TimeControl "180+1"]
[Date "2021.08.17"]
[WhiteClock "0:01:08"]
[BlackClock "0:00:01"]

1. Nf3 {[%clk 0:03:00]}  d5 {[%clk 0:02:59]} 2. g3 {[%clk 0:03:00]}  c5 {[%clk 0:02:57]} 3. Bg2 {[%clk 0:03:00]}  Nc6 {[%clk 0:02:57]} 4. d4 {[%clk 0:03:01]}  Nf6 {[%clk 0:02:54]} 5. O-O {[%clk 0:03:00]}  e6 {[%clk 0:02:43]} 6. c4 {[%clk 0:03:00]}  dxc4 {[%clk 0:02:38]} 7. Qa4 {[%clk 0:02:59]}  Bd7 {[%clk 0:02:18]} 8. dxc5 {[%clk 0:02:55]}  Bxc5 {[%clk 0:02:10]} 9. Qxc4 {[%clk 0:02:54]}  Be7 {[%clk 0:02:03]} 10. Nc3 {[%clk 0:02:53]}  O-O {[%clk 0:02:02]} 11. Bf4 {[%clk 0:02:47]}  Rc8 {[%clk 0:02:01]} 12. Rfd1 {[%clk 0:02:44]}  Qa5 {[%clk 0:01:53]} 13. Qb5 {[%clk 0:02:39]}  Qxb5 {[%clk 0:01:46]} 14. Nxb5 {[%clk 0:02:40]}  Nd5 {[%clk 0:01:46]} 15. Bd6 {[%clk 0:02:37]}  Bxd6 {[%clk 0:01:36]} 16. Nxd6 {[%clk 0:02:38]}  Rc7 {[%clk 0:01:36]} 17. Rac1 {[%clk 0:02:34]}  a6 {[%clk 0:01:29]} 18. e4 {[%clk 0:02:31]}  Nb6 {[%clk 0:01:24]} 19. e5 {[%clk 0:02:15]}  Nc8 {[%clk 0:01:10]} 20. Nd2 {[%clk 0:01:48]}  f6 {[%clk 0:00:50]} 21. Nxc8 {[%clk 0:01:40]}  Rcxc8 {[%clk 0:00:40]} 22. exf6 {[%clk 0:01:37]}  gxf6 {[%clk 0:00:39]} 23. Ne4 {[%clk 0:01:37]}  Ne5 {[%clk 0:00:27]} 24. Nd6 {[%clk 0:01:33]}  Rxc1 {[%clk 0:00:24]} 25. Rxc1 {[%clk 0:01:34]}  Bc6 {[%clk 0:00:18]} 26. Nxb7 {[%clk 0:01:30]}  Nf3+ {[%clk 0:00:08]} 27. Bxf3 {[%clk 0:01:30]}  Bxf3 {[%clk 0:00:09]} 28. Nd6 {[%clk 0:01:31]}  Rd8 {[%clk 0:00:08]} 29. Rc8 {[%clk 0:01:31]}  Rxc8 {[%clk 0:00:07]} 30. Nxc8 {[%clk 0:01:32]}  Kf7 {[%clk 0:00:07]} 31. Kf1 {[%clk 0:01:29]}  Ke8 {[%clk 0:00:07]} 32. Nb6 {[%clk 0:01:26]}  Kd8 {[%clk 0:00:06]} 33. Ke1 {[%clk 0:01:26]}  Kc7 {[%clk 0:00:06]} 34. Nc4 {[%clk 0:01:26]}  Kc6 {[%clk 0:00:06]} 35. Kd2 {[%clk 0:01:26]}  Kc5 {[%clk 0:00:07]} 36. Kc3 {[%clk 0:01:26]}  e5 {[%clk 0:00:05]} 37. a4 {[%clk 0:01:24]}  Kd5 {[%clk 0:00:03]} 38. b4 {[%clk 0:01:23]}  Be2 {[%clk 0:00:02]} 39. Nd2 {[%clk 0:01:15]}  f5 {[%clk 0:00:02]} 40. Nb3 {[%clk 0:01:10]}  f4 {[%clk 0:00:01]} 41. Nc5 {[%clk 0:01:08]} 1-0


[Site "https://www.chess.com"]

[Event "Titled Tuesday Blitz August 17 2021"]
[White "davigator"]
[Black "Tanenbaum, Zachary"]
[BlackFideId "2060850"]
[WhiteElo "2348"]
[BlackElo "2165"]
[Result "0-1"]
[Round "04"]
[TimeControl "180+1"]
[Date "2021.08.18"]
[WhiteClock "0:00:26"]
[BlackClock "0:00:05"]

1. e4 {[%clk 0:03:00]}  e5 {[%clk 0:02:59]} 2. Nf3 {[%clk 0:03:00]}  Nc6 {[%clk 0:02:59]} 3. Bb5 {[%clk 0:02:58]}  a6 {[%clk 0:03:00]} 4. Ba4 {[%clk 0:02:58]}  d6 {[%clk 0:03:00]} 5. O-O {[%clk 0:02:56]}  Nf6 {[%clk 0:03:00]} 6. Re1 {[%clk 0:02:55]}  Be7 {[%clk 0:02:59]} 7. c3 {[%clk 0:02:55]}  O-O {[%clk 0:02:59]} 8. d4 {[%clk 0:02:54]}  b5 {[%clk 0:02:59]} 9. Bc2 {[%clk 0:02:53]}  Bg4 {[%clk 0:02:57]} 10. Be3 {[%clk 0:02:52]}  Re8 {[%clk 0:02:50]} 11. h3 {[%clk 0:02:51]}  Bh5 {[%clk 0:02:50]} 12. Nbd2 {[%clk 0:02:51]}  Bf8 {[%clk 0:02:49]} 13. d5 {[%clk 0:02:50]}  Ne7 {[%clk 0:02:47]} 14. Nf1 {[%clk 0:02:48]}  c6 {[%clk 0:02:37]} 15. dxc6 {[%clk 0:02:46]}  Nxc6 {[%clk 0:02:38]} 16. Ng3 {[%clk 0:02:44]}  Bg6 {[%clk 0:02:38]} 17. Qd2 {[%clk 0:02:44]}  d5 {[%clk 0:02:32]} 18. Bg5 {[%clk 0:02:30]}  d4 {[%clk 0:02:15]} 19. Rad1 {[%clk 0:02:25]}  h6 {[%clk 0:02:12]} 20. Bh4 {[%clk 0:02:23]}  Be7 {[%clk 0:01:55]} 21. cxd4 {[%clk 0:02:21]}  Bb4 {[%clk 0:01:54]} 22. Qe3 {[%clk 0:01:57]}  exd4 {[%clk 0:01:14]} 23. Nxd4 {[%clk 0:01:55]}  Nxd4 {[%clk 0:01:13]} 24. Rxd4 {[%clk 0:01:55]}  Qe7 {[%clk 0:00:54]} 25. Re2 {[%clk 0:01:16]}  Bc5 {[%clk 0:00:54]} 26. Bxf6 {[%clk 0:01:11]}  Qxf6 {[%clk 0:00:47]} 27. e5 {[%clk 0:01:11]}  Qb6 {[%clk 0:00:30]} 28. Bxg6 {[%clk 0:01:06]}  Bxd4 {[%clk 0:00:29]} 29. Bxf7+ {[%clk 0:01:00]}  Kxf7 {[%clk 0:00:30]} 30. Qf4+ {[%clk 0:01:00]}  Kg8 {[%clk 0:00:29]} 31. Nf5 {[%clk 0:00:59]}  Bc5 {[%clk 0:00:19]} 32. Qg4 {[%clk 0:00:58]}  Ra7 {[%clk 0:00:15]} 33. e6 {[%clk 0:00:57]}  Rxe6 {[%clk 0:00:09]} 34. Nxh6+ {[%clk 0:00:40]}  Rxh6 {[%clk 0:00:09]} 35. Re8+ {[%clk 0:00:40]}  Bf8 {[%clk 0:00:08]} 36. Qf3 {[%clk 0:00:33]}  Rf6 {[%clk 0:00:07]} 37. Qd5+ {[%clk 0:00:33]}  Raf7 {[%clk 0:00:07]} 38. Kh2 {[%clk 0:00:28]}  Rxf2 {[%clk 0:00:05]} 39. Rxf8+ {[%clk 0:00:28]}  Kxf8 {[%clk 0:00:05]} 40. Qa8+ {[%clk 0:00:27]}  Ke7 {[%clk 0:00:05]} 41. Qe4+ {[%clk 0:00:27]}  Kd7 {[%clk 0:00:04]} 42. Qd5+ {[%clk 0:00:26]}  Qd6+ {[%clk 0:00:05]} 0-1


[Site "https://www.chess.com"]

[Event "Titled Tuesday Blitz August 17 2021"]
[White "volunteers1998"]
[Black "Omariev, Maksim"]
[BlackFideId "4193423"]
[WhiteElo "2235"]
[BlackElo "2419"]
[Result "1-0"]
[Round "04"]
[TimeControl "180+1"]
[Date "2021.08.18"]
[WhiteClock "0:00:44"]
[BlackClock "0:00:08"]

1. e4 {[%clk 0:03:00]}  c5 {[%clk 0:02:50]} 2. Nf3 {[%clk 0:03:00]}  d6 {[%clk 0:02:49]} 3. d4 {[%clk 0:02:59]}  cxd4 {[%clk 0:02:45]} 4. Nxd4 {[%clk 0:03:00]}  Nf6 {[%clk 0:02:45]} 5. Nc3 {[%clk 0:03:00]}  a6 {[%clk 0:02:44]} 6. h3 {[%clk 0:02:59]}  e6 {[%clk 0:02:44]} 7. g4 {[%clk 0:02:52]}  Nfd7 {[%clk 0:02:42]} 8. Be3 {[%clk 0:02:49]}  b5 {[%clk 0:02:41]} 9. Bg2 {[%clk 0:02:42]}  Bb7 {[%clk 0:02:41]} 10. O-O {[%clk 0:02:39]}  Nc5 {[%clk 0:02:35]} 11. a3 {[%clk 0:02:34]}  Be7 {[%clk 0:02:29]} 12. f4 {[%clk 0:02:31]}  O-O {[%clk 0:02:23]} 13. Qe1 {[%clk 0:02:25]}  Nc6 {[%clk 0:02:22]} 14. Rd1 {[%clk 0:02:22]}  Qc7 {[%clk 0:02:18]} 15. Qg3 {[%clk 0:02:16]}  Rfe8 {[%clk 0:02:15]} 16. e5 {[%clk 0:02:07]}  Nxd4 {[%clk 0:02:08]} 17. Bxd4 {[%clk 0:02:04]}  Bxg2 {[%clk 0:02:06]} 18. Qxg2 {[%clk 0:02:04]}  dxe5 {[%clk 0:02:02]} 19. Bxe5 {[%clk 0:02:02]}  Qa7 {[%clk 0:01:55]} 20. Kh1 {[%clk 0:01:58]}  Red8 {[%clk 0:01:47]} 21. Rxd8+ {[%clk 0:01:51]}  Rxd8 {[%clk 0:01:47]} 22. Rd1 {[%clk 0:01:47]}  Qb6 {[%clk 0:01:29]} 23. Rxd8+ {[%clk 0:01:43]}  Qxd8 {[%clk 0:01:30]} 24. Ne4 {[%clk 0:01:27]}  Qd1+ {[%clk 0:00:44]} 25. Kh2 {[%clk 0:01:24]}  h6 {[%clk 0:00:41]} 26. Nxc5 {[%clk 0:01:22]}  Bxc5 {[%clk 0:00:41]} 27. Bc3 {[%clk 0:01:20]}  Be3 {[%clk 0:00:39]} 28. Qa8+ {[%clk 0:01:15]}  Kh7 {[%clk 0:00:32]} 29. Qe4+ {[%clk 0:01:15]}  f5 {[%clk 0:00:26]} 30. Qxe3 {[%clk 0:01:13]}  Qxc2+ {[%clk 0:00:23]} 31. Qd2 {[%clk 0:01:10]}  Qe4 {[%clk 0:00:20]} 32. Kg3 {[%clk 0:01:07]}  fxg4 {[%clk 0:00:11]} 33. hxg4 {[%clk 0:01:07]}  h5 {[%clk 0:00:12]} 34. gxh5 {[%clk 0:00:59]}  Kh6 {[%clk 0:00:12]} 35. Qd4 {[%clk 0:00:57]}  Qb7 {[%clk 0:00:05]} 36. Qxg7+ {[%clk 0:00:50]}  Qxg7+ {[%clk 0:00:04]} 37. Bxg7+ {[%clk 0:00:50]}  Kxg7 {[%clk 0:00:01]} 38. b4 {[%clk 0:00:49]}  Kf6 {[%clk 0:00:01]} 39. Kg4 {[%clk 0:00:47]}  Kf7 {[%clk 0:00:01]} 40. Kg5 {[%clk 0:00:45]}  Kg7 {[%clk 0:00:01]} 41. h6+ {[%clk 0:00:45]}  Kf7 {[%clk 0:00:02]} 42. h7 {[%clk 0:00:44]}  Kg7 {[%clk 0:00:02]} 43. h8=Q+ {[%clk 0:00:44]}  Kxh8 {[%clk 0:00:03]} 44. Kf6 {[%clk 0:00:44]}  e5 {[%clk 0:00:02]} 45. fxe5 {[%clk 0:00:43]}  Kg8 {[%clk 0:00:02]} 46. Ke7 {[%clk 0:00:44]}  Kg7 {[%clk 0:00:02]} 47. Kd7 {[%clk 0:00:44]}  Kg6 {[%clk 0:00:03]} 48. e6 {[%clk 0:00:44]}  a5 {[%clk 0:00:04]} 49. e7 {[%clk 0:00:45]}  axb4 {[%clk 0:00:04]} 50. axb4 {[%clk 0:00:44]}  Kf5 {[%clk 0:00:05]} 51. e8=Q {[%clk 0:00:44]}  Kf4 {[%clk 0:00:06]} 52. Kd6 {[%clk 0:00:44]}  Kf5 {[%clk 0:00:07]} 53. Qe5+ {[%clk 0:00:43]}  Kg6 {[%clk 0:00:06]} 54. Qf4 {[%clk 0:00:42]}  Kh7 {[%clk 0:00:06]} 55. Qg5 {[%clk 0:00:42]}  Kh8 {[%clk 0:00:07]} 56. Ke6 {[%clk 0:00:43]}  Kh7 {[%clk 0:00:07]} 57. Kf6 {[%clk 0:00:43]}  Kh8 {[%clk 0:00:08]} 58. Qg7# {[%clk 0:00:44]} 1-0


[Site "https://www.chess.com"]

[Event "Titled Tuesday Blitz August 17 2021"]
[White "Baches Garcia, Guillermo"]
[Black "Petrovskyi, Vadym"]
[WhiteFideId "2209764"]
[BlackFideId "14165210"]
[WhiteElo "2471"]
[BlackElo "2334"]
[Result "0-1"]
[Round "05"]
[TimeControl "180+1"]
[Date "2021.08.17"]
[WhiteClock "0:00:48"]
[BlackClock "0:02:24"]

1. e4 {[%clk 0:03:00]}  c5 {[%clk 0:02:59]} 2. Nf3 {[%clk 0:03:00]}  d6 {[%clk 0:02:59]} 3. d4 {[%clk 0:03:00]}  cxd4 {[%clk 0:03:00]} 4. Nxd4 {[%clk 0:03:01]}  Nf6 {[%clk 0:03:00]} 5. Nc3 {[%clk 0:03:01]}  a6 {[%clk 0:03:00]} 6. Be2 {[%clk 0:03:01]}  e5 {[%clk 0:03:00]} 7. Nb3 {[%clk 0:03:02]}  Be7 {[%clk 0:03:00]} 8. O-O {[%clk 0:03:02]}  O-O {[%clk 0:03:00]} 9. a4 {[%clk 0:03:02]}  Be6 {[%clk 0:03:00]} 10. Be3 {[%clk 0:02:59]}  Nc6 {[%clk 0:03:00]} 11. Bf3 {[%clk 0:02:53]}  Nb4 {[%clk 0:02:59]} 12. a5 {[%clk 0:02:52]}  Rc8 {[%clk 0:02:59]} 13. Re1 {[%clk 0:02:45]}  d5 {[%clk 0:02:45]} 14. Bb6 {[%clk 0:02:35]}  Qd6 {[%clk 0:02:39]} 15. exd5 {[%clk 0:02:33]}  Nbxd5 {[%clk 0:02:39]} 16. Nxd5 {[%clk 0:02:23]}  Nxd5 {[%clk 0:02:38]} 17. Qe2 {[%clk 0:02:09]}  Nxb6 {[%clk 0:02:33]} 18. axb6 {[%clk 0:02:06]}  Qxb6 {[%clk 0:02:34]} 19. Qxe5 {[%clk 0:02:00]}  Rxc2 {[%clk 0:02:32]} 20. Nd4 {[%clk 0:01:30]}  Bf6 {[%clk 0:02:30]} 21. Qe4 {[%clk 0:01:30]}  Rc4 {[%clk 0:02:26]} 22. Nxe6 {[%clk 0:00:47]}  Rxe4 {[%clk 0:02:24]} 23. Nxf8 {[%clk 0:00:48]}  Rxe1+ {[%clk 0:02:24]} 0-1


[Site "https://www.chess.com"]

[Event "Titled Tuesday Blitz August 17 2021"]
[White "Bacrot, Etienne"]
[Black "Papasimakopoulos, Alexandros"]
[WhiteFideId "605506"]
[BlackFideId "4244125"]
[WhiteElo "2673"]
[BlackElo "2352"]
[Result "1-0"]
[Round "05"]
[TimeControl "180+1"]
[Date "2021.08.17"]
[WhiteClock "0:01:21"]
[BlackClock "0:00:47"]

1. e4 {[%clk 0:03:00]}  e6 {[%clk 0:02:58]} 2. d4 {[%clk 0:02:58]}  d5 {[%clk 0:02:58]} 3. exd5 {[%clk 0:02:58]}  exd5 {[%clk 0:02:58]} 4. Nf3 {[%clk 0:02:59]}  Bg4 {[%clk 0:02:58]} 5. h3 {[%clk 0:02:58]}  Bh5 {[%clk 0:02:58]} 6. Qe2+ {[%clk 0:02:58]}  Qe7 {[%clk 0:02:58]} 7. Be3 {[%clk 0:02:53]}  Nc6 {[%clk 0:02:59]} 8. g4 {[%clk 0:02:49]}  Bg6 {[%clk 0:02:58]} 9. Nc3 {[%clk 0:02:49]}  O-O-O {[%clk 0:02:58]} 10. O-O-O {[%clk 0:02:46]}  f6 {[%clk 0:02:58]} 11. Bg2 {[%clk 0:02:35]}  Qd7 {[%clk 0:02:57]} 12. Rhe1 {[%clk 0:02:34]}  Bb4 {[%clk 0:02:55]} 13. Bd2 {[%clk 0:02:31]}  Bxc3 {[%clk 0:02:54]} 14. Bxc3 {[%clk 0:02:30]}  Nge7 {[%clk 0:02:51]} 15. Qe6 {[%clk 0:02:16]}  Be4 {[%clk 0:02:44]} 16. Qxd7+ {[%clk 0:02:11]}  Kxd7 {[%clk 0:02:41]} 17. Re3 {[%clk 0:02:11]}  h5 {[%clk 0:02:30]} 18. Bf1 {[%clk 0:02:11]}  hxg4 {[%clk 0:02:30]} 19. hxg4 {[%clk 0:02:12]}  g5 {[%clk 0:02:25]} 20. Nd2 {[%clk 0:02:10]}  Bg6 {[%clk 0:02:18]} 21. Nb3 {[%clk 0:02:10]}  b6 {[%clk 0:02:08]} 22. Bb5 {[%clk 0:02:09]}  Kc8 {[%clk 0:01:59]} 23. Rde1 {[%clk 0:02:03]}  Rh7 {[%clk 0:01:57]} 24. Re6 {[%clk 0:01:56]}  Rd6 {[%clk 0:01:57]} 25. Rxd6 {[%clk 0:01:56]}  cxd6 {[%clk 0:01:57]} 26. Re6 {[%clk 0:01:56]}  f5 {[%clk 0:01:46]} 27. Bxc6 {[%clk 0:01:53]}  Nxc6 {[%clk 0:01:40]} 28. Rxg6 {[%clk 0:01:51]}  fxg4 {[%clk 0:01:39]} 29. Rxg5 {[%clk 0:01:50]}  Rh2 {[%clk 0:01:39]} 30. Rxg4 {[%clk 0:01:48]}  Rxf2 {[%clk 0:01:33]} 31. Rg1 {[%clk 0:01:44]}  Ne7 {[%clk 0:01:33]} 32. Be1 {[%clk 0:01:41]}  Re2 {[%clk 0:01:29]} 33. Rf1 {[%clk 0:01:38]}  Rg2 {[%clk 0:01:28]} 34. Nd2 {[%clk 0:01:36]}  Kd7 {[%clk 0:01:13]} 35. Nb1 {[%clk 0:01:35]}  Kc6 {[%clk 0:01:11]} 36. a4 {[%clk 0:01:32]}  a6 {[%clk 0:01:11]} 37. Nc3 {[%clk 0:01:32]}  Ng6 {[%clk 0:01:07]} 38. Na2 {[%clk 0:01:28]}  a5 {[%clk 0:01:07]} 39. Nc3 {[%clk 0:01:27]}  Nf8 {[%clk 0:00:47]} 40. Rxf8 {[%clk 0:01:21]} 1-0


[Site "https://www.chess.com"]

[Event "Titled Tuesday Blitz August 17 2021"]
[White "Balabayeva, Xeniya"]
[Black "FGHSMN"]
[WhiteFideId "13719688"]
[WhiteElo "1988"]
[BlackElo "2585"]
[Result "0-1"]
[Round "05"]
[TimeControl "180+1"]
[Date "2021.08.18"]
[WhiteClock "0:00:02"]
[BlackClock "0:00:29"]

1. e4 {[%clk 0:02:35]}  c5 {[%clk 0:02:57]} 2. Nf3 {[%clk 0:02:30]}  e6 {[%clk 0:02:56]} 3. g3 {[%clk 0:02:29]}  Nc6 {[%clk 0:02:52]} 4. Bg2 {[%clk 0:02:26]}  Nf6 {[%clk 0:02:50]} 5. Qe2 {[%clk 0:02:23]}  d6 {[%clk 0:02:45]} 6. O-O {[%clk 0:02:22]}  Be7 {[%clk 0:02:45]} 7. c3 {[%clk 0:02:16]}  O-O {[%clk 0:02:43]} 8. d4 {[%clk 0:02:13]}  cxd4 {[%clk 0:02:44]} 9. cxd4 {[%clk 0:02:14]}  Bd7 {[%clk 0:02:41]} 10. Nc3 {[%clk 0:02:13]}  Rc8 {[%clk 0:02:34]} 11. Be3 {[%clk 0:01:50]}  Re8 {[%clk 0:02:24]} 12. Rad1 {[%clk 0:01:47]}  Na5 {[%clk 0:01:50]} 13. Rfe1 {[%clk 0:01:42]}  Nc4 {[%clk 0:01:48]} 14. Bc1 {[%clk 0:01:09]}  Bf8 {[%clk 0:01:48]} 15. Rd3 {[%clk 0:01:07]}  b5 {[%clk 0:01:44]} 16. e5 {[%clk 0:00:55]}  Nd5 {[%clk 0:01:35]} 17. Nxd5 {[%clk 0:00:47]}  exd5 {[%clk 0:01:36]} 18. b3 {[%clk 0:00:45]}  dxe5 {[%clk 0:01:28]} 19. dxe5 {[%clk 0:00:41]}  Nb6 {[%clk 0:01:20]} 20. Bf4 {[%clk 0:00:29]}  b4 {[%clk 0:01:12]} 21. Nd4 {[%clk 0:00:23]}  Bc5 {[%clk 0:01:11]} 22. Red1 {[%clk 0:00:21]}  Qe7 {[%clk 0:01:04]} 23. Qd2 {[%clk 0:00:20]}  a5 {[%clk 0:01:02]} 24. h4 {[%clk 0:00:19]}  a4 {[%clk 0:01:01]} 25. Re1 {[%clk 0:00:14]}  Nc4 {[%clk 0:00:59]} 26. bxc4 {[%clk 0:00:13]}  dxc4 {[%clk 0:01:00]} 27. Rde3 {[%clk 0:00:13]}  b3 {[%clk 0:00:55]} 28. axb3 {[%clk 0:00:12]}  cxb3 {[%clk 0:00:52]} 29. Bg5 {[%clk 0:00:12]}  Qf8 {[%clk 0:00:49]} 30. Bd5 {[%clk 0:00:12]}  Bb4 {[%clk 0:00:47]} 31. Qd3 {[%clk 0:00:11]}  Bxe1 {[%clk 0:00:45]} 32. Rxe1 {[%clk 0:00:11]}  b2 {[%clk 0:00:43]} 33. Rb1 {[%clk 0:00:07]}  a3 {[%clk 0:00:41]} 34. Kg2 {[%clk 0:00:05]}  Qc5 {[%clk 0:00:37]} 35. Be4 {[%clk 0:00:05]}  a2 {[%clk 0:00:34]} 36. Bxh7+ {[%clk 0:00:02]}  Kh8 {[%clk 0:00:33]} 37. Rxb2 {[%clk 0:00:02]}  a1=Q {[%clk 0:00:31]} 38. Rd2 {[%clk 0:00:02]}  Qcc1 {[%clk 0:00:29]} 0-1


[Site "https://www.chess.com"]

[Event "Titled Tuesday Blitz August 17 2021"]
[White "Chen, Max"]
[Black "Gelman, Alexander"]
[WhiteFideId "2622440"]
[BlackFideId "4118316"]
[WhiteElo "2429"]
[BlackElo "2375"]
[Result "1-0"]
[Round "05"]
[TimeControl "180+1"]
[Date "2021.08.18"]
[WhiteClock "0:00:06"]
[BlackClock "0:00:17"]

1. e4 {[%clk 0:03:00]}  c5 {[%clk 0:02:59]} 2. c3 {[%clk 0:02:58]}  e6 {[%clk 0:02:57]} 3. d4 {[%clk 0:02:58]}  d5 {[%clk 0:02:58]} 4. exd5 {[%clk 0:02:57]}  exd5 {[%clk 0:02:59]} 5. Nf3 {[%clk 0:02:57]}  Nc6 {[%clk 0:02:59]} 6. Be3 {[%clk 0:02:56]}  cxd4 {[%clk 0:02:59]} 7. Nxd4 {[%clk 0:02:56]}  Nf6 {[%clk 0:02:59]} 8. Nd2 {[%clk 0:02:55]}  Bd6 {[%clk 0:03:00]} 9. Be2 {[%clk 0:02:55]}  O-O {[%clk 0:03:00]} 10. O-O {[%clk 0:02:55]}  Re8 {[%clk 0:03:00]} 11. Re1 {[%clk 0:02:46]}  Rxe3 {[%clk 0:02:58]} 12. fxe3 {[%clk 0:02:45]}  Qe7 {[%clk 0:02:57]} 13. Nf1 {[%clk 0:02:33]}  Ne5 {[%clk 0:02:49]} 14. h3 {[%clk 0:02:05]}  a6 {[%clk 0:02:48]} 15. a4 {[%clk 0:02:03]}  Bd7 {[%clk 0:02:47]} 16. Ng3 {[%clk 0:01:55]}  g6 {[%clk 0:02:45]} 17. Nf1 {[%clk 0:01:53]}  Re8 {[%clk 0:02:43]} 18. b3 {[%clk 0:01:49]}  h5 {[%clk 0:02:40]} 19. Nf3 {[%clk 0:01:46]}  Ne4 {[%clk 0:02:36]} 20. Rc1 {[%clk 0:01:41]}  Nxf3+ {[%clk 0:02:09]} 21. Bxf3 {[%clk 0:01:41]}  Qe5 {[%clk 0:02:09]} 22. Qd4 {[%clk 0:01:38]}  Qg5 {[%clk 0:02:04]} 23. c4 {[%clk 0:01:21]}  Bxh3 {[%clk 0:01:24]} 24. Qxd5 {[%clk 0:01:18]}  Re5 {[%clk 0:01:24]} 25. Qxb7 {[%clk 0:01:18]}  Nc5 {[%clk 0:01:06]} 26. Qb6 {[%clk 0:01:09]}  Re6 {[%clk 0:00:57]} 27. b4 {[%clk 0:00:39]}  Nd3 {[%clk 0:00:45]} 28. c5 {[%clk 0:00:33]}  Nxe1 {[%clk 0:00:33]} 29. Rxe1 {[%clk 0:00:32]}  Bg3 {[%clk 0:00:31]} 30. Nxg3 {[%clk 0:00:10]}  Rxb6 {[%clk 0:00:27]} 31. cxb6 {[%clk 0:00:10]}  Qxg3 {[%clk 0:00:27]} 32. Rd1 {[%clk 0:00:10]}  h4 {[%clk 0:00:18]} 33. b7 {[%clk 0:00:09]}  Bxg2 {[%clk 0:00:18]} 34. Rd8+ {[%clk 0:00:05]}  Kg7 {[%clk 0:00:17]} 35. b8=Q {[%clk 0:00:05]}  Qxf3 {[%clk 0:00:16]} 36. Qe5+ {[%clk 0:00:05]}  f6 {[%clk 0:00:13]} 37. Qc7+ {[%clk 0:00:04]}  Kh6 {[%clk 0:00:14]} 38. Rh8+ {[%clk 0:00:02]}  Kg5 {[%clk 0:00:15]} 39. Qf4+ {[%clk 0:00:03]}  Qxf4 {[%clk 0:00:14]} 40. exf4+ {[%clk 0:00:04]}  Kxf4 {[%clk 0:00:15]} 41. Kxg2 {[%clk 0:00:05]}  g5 {[%clk 0:00:15]} 42. Rf8 {[%clk 0:00:05]}  f5 {[%clk 0:00:16]} 43. b5 {[%clk 0:00:05]}  axb5 {[%clk 0:00:16]} 44. axb5 {[%clk 0:00:06]}  g4 {[%clk 0:00:16]} 45. b6 {[%clk 0:00:06]}  h3+ {[%clk 0:00:17]} 46. Kh2 {[%clk 0:00:06]}  Kg5 {[%clk 0:00:17]} 47. b7 {[%clk 0:00:06]} 1-0


[Site "https://www.chess.com"]

[Event "Titled Tuesday Blitz August 17 2021"]
[White "Dahanayake, Isara Banidu"]
[Black "Sengupta, Deep"]
[WhiteFideId "9932631"]
[BlackFideId "5008352"]
[WhiteElo "1394"]
[BlackElo "2347"]
[Result "0-1"]
[Round "05"]
[TimeControl "180+1"]
[Date "2021.08.17"]
[WhiteClock "0:00:12"]
[BlackClock "0:00:22"]

1. e4 {[%clk 0:03:00]}  b6 {[%clk 0:02:57]} 2. d4 {[%clk 0:02:58]}  e6 {[%clk 0:02:58]} 3. Nc3 {[%clk 0:02:57]}  Bb7 {[%clk 0:02:57]} 4. Nf3 {[%clk 0:02:54]}  Bb4 {[%clk 0:02:57]} 5. Bd3 {[%clk 0:02:49]}  Nf6 {[%clk 0:02:56]} 6. Qe2 {[%clk 0:02:45]}  d5 {[%clk 0:02:55]} 7. e5 {[%clk 0:02:32]}  Ne4 {[%clk 0:02:52]} 8. Bd2 {[%clk 0:02:28]}  Nxd2 {[%clk 0:02:50]} 9. Qxd2 {[%clk 0:02:28]}  c5 {[%clk 0:02:49]} 10. a3 {[%clk 0:02:22]}  Bxc3 {[%clk 0:02:39]} 11. bxc3 {[%clk 0:02:14]}  Nc6 {[%clk 0:02:30]} 12. O-O {[%clk 0:02:12]}  Rc8 {[%clk 0:02:28]} 13. Bb5 {[%clk 0:01:52]}  O-O {[%clk 0:02:26]} 14. Qf4 {[%clk 0:01:45]}  Ne7 {[%clk 0:02:14]} 15. Bd3 {[%clk 0:01:22]}  Ng6 {[%clk 0:02:11]} 16. Qg4 {[%clk 0:01:20]}  cxd4 {[%clk 0:01:34]} 17. cxd4 {[%clk 0:01:20]}  f5 {[%clk 0:01:33]} 18. exf6 {[%clk 0:01:13]}  Rxf6 {[%clk 0:01:33]} 19. h4 {[%clk 0:01:03]}  Nf4 {[%clk 0:01:29]} 20. Ng5 {[%clk 0:00:55]}  Nxd3 {[%clk 0:01:28]} 21. cxd3 {[%clk 0:00:55]}  Qd6 {[%clk 0:01:21]} 22. Rae1 {[%clk 0:00:53]}  Rcf8 {[%clk 0:01:05]} 23. Nxe6 {[%clk 0:00:46]}  Rg6 {[%clk 0:00:48]} 24. Qh3 {[%clk 0:00:27]}  Bc8 {[%clk 0:00:47]} 25. f4 {[%clk 0:00:28]}  Rxe6 {[%clk 0:00:46]} 26. Rxe6 {[%clk 0:00:24]}  Qxe6 {[%clk 0:00:45]} 27. f5 {[%clk 0:00:25]}  Rxf5 {[%clk 0:00:36]} 28. Rxf5 {[%clk 0:00:18]}  Qxf5 {[%clk 0:00:36]} 29. Qe3 {[%clk 0:00:19]}  h6 {[%clk 0:00:34]} 30. Qe8+ {[%clk 0:00:19]}  Kh7 {[%clk 0:00:34]} 31. Qe7 {[%clk 0:00:19]}  Qxd3 {[%clk 0:00:29]} 32. Qxa7 {[%clk 0:00:19]}  Qxd4+ {[%clk 0:00:29]} 33. Kh1 {[%clk 0:00:19]}  Bf5 {[%clk 0:00:29]} 34. Qf7 {[%clk 0:00:18]}  Be4 {[%clk 0:00:28]} 35. Qf4 {[%clk 0:00:17]}  Qb2 {[%clk 0:00:26]} 36. Qg3 {[%clk 0:00:12]}  b5 {[%clk 0:00:26]} 37. h5 {[%clk 0:00:12]}  Qxg2+ {[%clk 0:00:18]} 38. Qxg2 {[%clk 0:00:12]}  Bxg2+ {[%clk 0:00:19]} 39. Kxg2 {[%clk 0:00:13]}  g6 {[%clk 0:00:19]} 40. hxg6+ {[%clk 0:00:13]}  Kxg6 {[%clk 0:00:20]} 41. Kf3 {[%clk 0:00:13]}  Kf5 {[%clk 0:00:21]} 42. Ke3 {[%clk 0:00:14]}  h5 {[%clk 0:00:21]} 43. Kd4 {[%clk 0:00:14]}  h4 {[%clk 0:00:22]} 44. Kxd5 {[%clk 0:00:15]}  h3 {[%clk 0:00:22]} 45. Kc5 {[%clk 0:00:16]}  h2 {[%clk 0:00:23]} 46. Kxb5 {[%clk 0:00:16]}  h1=Q {[%clk 0:00:23]} 47. a4 {[%clk 0:00:17]}  Qb7+ {[%clk 0:00:23]} 48. Kc5 {[%clk 0:00:16]}  Ke5 {[%clk 0:00:22]} 49. a5 {[%clk 0:00:16]}  Qc7+ {[%clk 0:00:21]} 50. Kb5 {[%clk 0:00:16]}  Kd5 {[%clk 0:00:22]} 51. a6 {[%clk 0:00:17]}  Qc5+ {[%clk 0:00:22]} 52. Ka4 {[%clk 0:00:16]}  Kc4 {[%clk 0:00:22]} 53. a7 {[%clk 0:00:12]}  Qb4# {[%clk 0:00:22]} 0-1


[Site "https://www.chess.com"]